fUSD/lending_fUSD_20260606
["ID","MTS","AMOUNT","RATE_DAILY","PERIOD"]
[424293723,1780755040000,-517.79,0.000166,7]
[424293665,1780755040000,-1924.40945405,0.000152,2]
[424293714,1780755040000,-900.0,0.00016438,2]
[424293703,1780755040000,-1148.61238259,0.0001615,2]
[424293720,1780755040000,-150.0,0.00016597,2]
[424293701,1780755040000,-1068.11,0.0001615,2]
[424293667,1780755040000,-251.139368,0.00015291,2]
[424293678,1780755040000,-172.894509,0.0001543,2]
[424293670,1780755040000,-290.067125,0.00015301,2]
[424293669,1780755040000,-10086.07519568,0.000153,2]
[424293680,1780755040000,-1924.40945405,0.000155,2]
[424293679,1780755040000,-240.665647,0.00015433,2]
[424293671,1780755040000,-166.66,0.0001533,2]
[424293698,1780755040000,-9999.99,0.00016116,2]
[424293673,1780755040000,-276.66748,0.00015354,2]
[424293674,1780755040000,-273.42962,0.00015365,2]
[424293675,1780755040000,-1734.62772924,0.00015383,2]
[424293676,1780755040000,-280.281622,0.00015386,2]
[424293677,1780755040000,-993.9,0.000154,2]
[424293672,1780755040000,-25831.22520107,0.00015348,2]
[424293683,1780755040000,-1924.40945405,0.000156,2]
[424293692,1780755040000,-660.89103895,0.00016,2]
[424293684,1780755040000,-10086.07519568,0.000156,2]
[424293693,1780755040000,-213.216407,0.00016,2]
[424293695,1780755040000,-158.2,0.00016035,2]
[424293689,1780755040000,-10000.0,0.00015901,2]
[424293688,1780755040000,-10086.07519568,0.000159,2]
[424293691,1780755040000,-300.0,0.00016,2]
[424293686,1780755040000,-623.76,0.00015799,2]
[424293687,1780755040000,-10086.07519568,0.000158,2]
[424293690,1780755040000,-1798.80895522,0.00015931,2]
[424293681,1780755040000,-10086.07519568,0.000155,2]
[424293685,1780755040000,-340.10384513,0.00015619,10]
[424293682,1780755040000,-3554.61773671,0.00015514,2]
[424293764,1780755041000,-2005.9555727,0.00017575,2]
[424293765,1780755041000,-1377.42282658,0.00017575,2]
[424293763,1780755041000,-1650.0,0.00017415,7]
[424293762,1780755041000,-1400.0,0.00017415,2]
[424293761,1780755041000,-2500.0,0.00017415,2]
[424293754,1780755041000,-10086.07519568,0.000171,2]
[424293756,1780755041000,-2726.0,0.00017129,5]
[424293752,1780755041000,-1328.27659266,0.00017027,2]
[424293759,1780755041000,-350.0,0.0001726,3]
[424293757,1780755041000,-3554.61773671,0.00017185,2]
[424293758,1780755041000,-10086.07519568,0.000172,2]
[424293768,1780755041000,-10086.07519568,0.000178,2]
[424293775,1780755041000,-200.0,0.00018,2]
[424293769,1780755041000,-10086.07519568,0.000179,2]
[424293766,1780755041000,-10086.07519568,0.000176,2]
[424293767,1780755041000,-158.2,0.00017638,2]
[424293771,1780755041000,-440.16689882,0.00018,2]
[424293773,1780755041000,-360.66532224,0.00018,2]
[424293774,1780755041000,-350.0,0.00018,2]
[424293777,1780755041000,-151.0,0.00018123,2]
[424293779,1780755041000,-151.0,0.00018123,2]
[424293778,1780755041000,-151.0,0.00018123,2]
[424293776,1780755041000,-10086.07519568,0.000181,2]
[424293772,1780755041000,-165.95620521,0.00018,2]
[424293755,1780755041000,-993.9,0.000171,2]
[424293770,1780755041000,-923.51838061,0.00017942,2]
[424293751,1780755041000,-1934.38338736,0.00017027,2]
[424293738,1780755041000,-150.0,0.00016866,2]
[424293749,1780755041000,-25831.22520107,0.00016986,2]
[424293781,1780755041000,-151.0,0.00018123,2]
[424293726,1780755041000,-500.0,0.00016711,2]
[424293729,1780755041000,-3642.0,0.00016776,2]
[424293728,1780755041000,-168.33,0.00016712,2]
[424293730,1780755041000,-419.0,0.00016776,2]
[424293727,1780755041000,-500.0,0.00016711,2]
[424293731,1780755041000,-500.0,0.0001679,2]
[424293733,1780755041000,-500.0,0.0001679,2]
[424293734,1780755041000,-2000.0,0.0001679,2]
[424293737,1780755041000,-150.0,0.00016866,2]
[424293736,1780755041000,-150.0,0.00016866,2]
[424293732,1780755041000,-500.0,0.0001679,2]
[424293735,1780755041000,-200.0,0.000168,3]
[424293742,1780755041000,-382.0,0.00016866,2]
[424293740,1780755041000,-1358.0,0.00016866,2]
[424293745,1780755041000,-500.0,0.00016985,2]
[424293743,1780755041000,-1227.0,0.00016866,2]
[424293739,1780755041000,-150.0,0.00016866,2]
[424293741,1780755041000,-3554.0,0.00016866,2]
[424293744,1780755041000,-10086.07519568,0.000169,2]
[424293746,1780755041000,-500.0,0.00016985,2]
[424293748,1780755041000,-500.0,0.00016985,2]
[424293747,1780755041000,-500.0,0.00016985,2]
[424293750,1780755041000,-170.05192257,0.00016989,10]
[424293760,1780755041000,-10086.07519568,0.000174,2]
[424293753,1780755041000,-249.0,0.00017037,2]
[424293782,1780755041000,-151.0,0.00018123,2]
[424293780,1780755041000,-151.0,0.00018123,2]
[424293784,1780755041000,-2080.17592889,0.00018123,2]
[424293814,1780755041000,-500.0,0.00018998,2]
[424293816,1780755041000,-500.0,0.00018998,2]
[424293813,1780755041000,-3554.61773671,0.00018856,2]
[424293815,1780755041000,-500.0,0.00018998,2]
[424293818,1780755041000,-500.0,0.00018998,2]
[424293822,1780755041000,-500.0,0.00018998,2]
[424293821,1780755041000,-500.0,0.00018998,2]
[424293820,1780755041000,-500.0,0.00018998,2]
[424293819,1780755041000,-500.0,0.00018998,2]
[424293832,1780755041000,-500.0,0.00018998,2]
[424293830,1780755041000,-500.0,0.00018998,2]
[424293824,1780755041000,-500.0,0.00018998,2]
[424293812,1780755041000,-993.9,0.000187,2]
[424293828,1780755041000,-500.0,0.00018998,2]
[424293836,1780755041000,-500.0,0.00018998,2]
[424293838,1780755041000,-500.0,0.00018998,2]
[424293840,1780755041000,-500.0,0.00018998,2]
[424293844,1780755041000,-500.0,0.00018998,2]
[424293850,1780755041000,-500.0,0.00018998,2]
[424293846,1780755041000,-500.0,0.00018998,2]
[424293842,1780755041000,-500.0,0.00018998,2]
[424293848,1780755041000,-500.0,0.00018998,2]
[424293853,1780755041000,-500.0,0.00018998,2]
[424293851,1780755041000,-500.0,0.00018998,2]
[424293794,1780755041000,-151.0,0.00018123,2]
[424293852,1780755041000,-500.0,0.00018998,2]
[424293834,1780755041000,-500.0,0.00018998,2]
[424293811,1780755041000,-360.66532224,0.000187,2]
[424293826,1780755041000,-500.0,0.00018998,2]
[424293810,1780755041000,-440.16689882,0.000187,2]
[424293783,1780755041000,-151.0,0.00018123,2]
[424293809,1780755041000,-1481.2378076,0.00018671,2]
[424293786,1780755041000,-151.0,0.00018123,2]
[424293793,1780755041000,-151.0,0.00018123,2]
[424293785,1780755041000,-151.0,0.00018123,2]
[424293787,1780755041000,-151.0,0.00018123,2]
[424293792,1780755041000,-151.0,0.00018123,2]
[424293788,1780755041000,-151.0,0.00018123,2]
[424293789,1780755041000,-151.0,0.00018123,2]
[424293790,1780755041000,-1428.38747117,0.00018123,2]
[424293795,1780755041000,-440.16689882,0.000182,2]
[424293796,1780755041000,-165.95620521,0.000182,2]
[424293798,1780755041000,-10086.07519568,0.000183,2]
[424293791,1780755041000,-151.0,0.00018123,2]
[424293797,1780755041000,-360.66532224,0.000182,2]
[424293817,1780755041000,-500.0,0.00018998,2]
[424293808,1780755041000,-2157.14243826,0.00018671,2]
[424293806,1780755041000,-360.66532224,0.000185,2]
[424293807,1780755041000,-25831.22520107,0.00018624,2]
[424293803,1780755041000,-231.0152019,0.000184,2]
[424293802,1780755041000,-360.66532224,0.000184,2]
[424293805,1780755041000,-440.16689882,0.000185,2]
[424293804,1780755041000,-4204.8,0.0001841,2]
[424293800,1780755041000,-440.16689882,0.000184,2]
[424293801,1780755041000,-165.95620521,0.000184,2]
[424293799,1780755041000,-1125.0,0.00018341,2]
[424293900,1780755042000,-500.0,0.00018998,2]
[424293890,1780755042000,-500.0,0.00018998,2]
[424293896,1780755042000,-500.0,0.00018998,2]
[424293898,1780755042000,-500.0,0.00018998,2]
[424293895,1780755042000,-500.0,0.00018998,2]
[424293892,1780755042000,-500.0,0.00018998,2]
[424293885,1780755042000,-500.0,0.00018998,2]
[424293889,1780755042000,-500.0,0.00018998,2]
[424293887,1780755042000,-500.0,0.00018998,2]
[424293882,1780755042000,-500.0,0.00018998,2]
[424293886,1780755042000,-500.0,0.00018998,2]
[424293897,1780755042000,-500.0,0.00018998,2]
[424293891,1780755042000,-500.0,0.00018998,2]
[424293901,1780755042000,-500.0,0.00018998,2]
[424293913,1780755042000,-623.85838733,0.00018999,2]
[424293899,1780755042000,-500.0,0.00018998,2]
[424293902,1780755042000,-500.0,0.00018998,2]
[424293905,1780755042000,-500.0,0.00018998,2]
[424293903,1780755042000,-500.0,0.00018998,2]
[424293907,1780755042000,-500.0,0.00018998,2]
[424293906,1780755042000,-500.0,0.00018998,2]
[424293909,1780755042000,-623.76,0.00018999,2]
[424293908,1780755042000,-500.0,0.00018998,2]
[424293916,1780755042000,-400.0,0.0001907,2]
[424293912,1780755042000,-623.76,0.00018999,2]
[424293910,1780755042000,-623.76,0.00018999,2]
[424293917,1780755042000,-150.0,0.00019129,2]
[424293888,1780755042000,-500.0,0.00018998,2]
[424293904,1780755042000,-500.0,0.00018998,2]
[424293884,1780755042000,-500.0,0.00018998,2]
[424293867,1780755042000,-500.0,0.00018998,2]
[424293894,1780755042000,-500.0,0.00018998,2]
[424293911,1780755042000,-623.76,0.00018999,2]
[424293855,1780755042000,-500.0,0.00018998,2]
[424293854,1780755042000,-500.0,0.00018998,2]
[424293857,1780755042000,-500.0,0.00018998,2]
[424293856,1780755042000,-500.0,0.00018998,2]
[424293863,1780755042000,-500.0,0.00018998,2]
[424293860,1780755042000,-500.0,0.00018998,2]
[424293865,1780755042000,-500.0,0.00018998,2]
[424293862,1780755042000,-500.0,0.00018998,2]
[424293859,1780755042000,-500.0,0.00018998,2]
[424293864,1780755042000,-500.0,0.00018998,2]
[424293858,1780755042000,-500.0,0.00018998,2]
[424293861,1780755042000,-500.0,0.00018998,2]
[424293893,1780755042000,-500.0,0.00018998,2]
[424293866,1780755042000,-500.0,0.00018998,2]
[424293872,1780755042000,-500.0,0.00018998,2]
[424293870,1780755042000,-500.0,0.00018998,2]
[424293871,1780755042000,-500.0,0.00018998,2]
[424293875,1780755042000,-500.0,0.00018998,2]
[424293876,1780755042000,-500.0,0.00018998,2]
[424293880,1780755042000,-500.0,0.00018998,2]
[424293878,1780755042000,-500.0,0.00018998,2]
[424293877,1780755042000,-500.0,0.00018998,2]
[424293873,1780755042000,-500.0,0.00018998,2]
[424293881,1780755042000,-500.0,0.00018998,2]
[424293879,1780755042000,-500.0,0.00018998,2]
[424293874,1780755042000,-500.0,0.00018998,2]
[424293883,1780755042000,-500.0,0.00018998,2]
[424293869,1780755042000,-500.0,0.00018998,2]
[424293914,1780755042000,-1753.50455484,0.00019,2]
[424293868,1780755042000,-500.0,0.00018998,2]
[424293918,1780755042000,-839.06718577,0.00019178,2]
[424293956,1780755042000,-213.85,0.0002,2]
[424293950,1780755042000,-360.0,0.0002,2]
[424293954,1780755042000,-1317.0,0.0002,2]
[424293952,1780755042000,-204.0,0.0002,2]
[424293953,1780755042000,-766.0,0.0002,2]
[424293949,1780755042000,-1918.0,0.0002,2]
[424293960,1780755042000,-675.0,0.0002,2]
[424293971,1780755042000,-1795.87396474,0.000204,2]
[424293963,1780755042000,-4110.0,0.0002,2]
[424293970,1780755042000,-4204.8,0.00020381,2]
[424293968,1780755042000,-2405.55389863,0.00020315,2]
[424293969,1780755042000,-1125.0,0.00020322,2]
[424293964,1780755042000,-14184.8,0.0002,2]
[424293955,1780755042000,-1042.263907,0.0002,2]
[424293961,1780755042000,-2972.0,0.0002,2]
[424293967,1780755042000,-25831.22520107,0.00020262,2]
[424293965,1780755042000,-1116.0,0.0002,2]
[424293962,1780755042000,-200.0,0.0002,2]
[424293966,1780755042000,-1795.87396474,0.000202,2]
[424293972,1780755042000,-993.9,0.000204,2]
[424293979,1780755042000,-400.0,0.00021,2]
[424293974,1780755042000,-150.0,0.0002058,2]
[424293973,1780755042000,-3554.61773671,0.00020528,2]
[424293976,1780755042000,-164.0,0.00020789,2]
[424293978,1780755042000,-2494.55939288,0.00020863,2]
[424293977,1780755042000,-1795.87396474,0.000208,2]
[424293980,1780755042000,-1478.40305161,0.00021,2]
[424293915,1780755042000,-3541.00338417,0.00019,2]
[424293959,1780755042000,-1092.0,0.0002,2]
[424293951,1780755042000,-786.0,0.0002,2]
[424293975,1780755042000,-1795.87396474,0.000206,2]
[424293957,1780755042000,-936.0,0.0002,2]
[424293958,1780755042000,-400.0,0.0002,2]
[424293920,1780755042000,-1536.04360648,0.00019219,2]
[424293921,1780755042000,-158.2,0.00019241,2]
[424293922,1780755042000,-1125.0,0.00019306,2]
[424293923,1780755042000,-2000.0,0.00019386,7]
[424293926,1780755042000,-500.0,0.00019591,2]
[424293919,1780755042000,-2236.95670847,0.00019219,2]
[424293924,1780755042000,-500.0,0.00019591,2]
[424293925,1780755042000,-500.0,0.00019591,2]
[424293931,1780755042000,-150.0,0.00019597,2]
[424293928,1780755042000,-2000.0,0.00019591,2]
[424293930,1780755042000,-150.0,0.00019597,2]
[424293943,1780755042000,-400.0,0.0002,2]
[424293944,1780755042000,-1563.53,0.0002,2]
[424293929,1780755042000,-150.0,0.00019597,2]
[424293933,1780755042000,-1592.87721992,0.00019767,2]
[424293945,1780755042000,-1795.87396474,0.0002,2]
[424293946,1780755042000,-2510.0,0.0002,2]
[424293939,1780755042000,-3554.0,0.00019866,2]
[424293941,1780755042000,-382.0,0.00019866,2]
[424293934,1780755042000,-3642.0,0.00019776,2]
[424293937,1780755042000,-150.0,0.00019866,2]
[424293947,1780755042000,-333.0,0.0002,2]
[424293938,1780755042000,-150.0,0.00019866,2]
[424293932,1780755042000,-2319.72410669,0.00019767,2]
[424293936,1780755042000,-150.0,0.00019866,2]
[424293935,1780755042000,-419.0,0.00019776,2]
[424293948,1780755042000,-353.0,0.0002,2]
[424293942,1780755042000,-1227.0,0.00019866,2]
[424293940,1780755042000,-1358.0,0.00019866,2]
[424294026,1780755043000,-800.0,0.00021918,2]
[424294018,1780755043000,-172.0,0.00021787,2]
[424294016,1780755043000,-150.0,0.00021787,2]
[424294008,1780755043000,-1795.87396474,0.000217,2]
[424294014,1780755043000,-219.4296087,0.00021751,2]
[424294015,1780755043000,-150.0,0.00021787,2]
[424294012,1780755043000,-220.80704455,0.00021751,2]
[424294019,1780755043000,-500.0,0.0002189,2]
[424294021,1780755043000,-1795.87396474,0.000219,2]
[424294022,1780755043000,-25831.22520107,0.000219,2]
[424294017,1780755043000,-150.0,0.00021787,2]
[424294010,1780755043000,-225.51410402,0.00021751,2]
[424294030,1780755043000,-800.0,0.00021918,2]
[424294025,1780755043000,-800.0,0.00021918,2]
[424294028,1780755043000,-800.0,0.00021918,2]
[424294020,1780755043000,-1478.40305161,0.000219,2]
[424294027,1780755043000,-800.0,0.00021918,2]
[424294029,1780755043000,-800.0,0.00021918,2]
[424294024,1780755043000,-800.0,0.00021918,2]
[424294039,1780755043000,-800.0,0.00021918,2]
[424294040,1780755043000,-800.0,0.00021918,2]
[424294032,1780755043000,-800.0,0.00021918,2]
[424294034,1780755043000,-800.0,0.00021918,2]
[424294013,1780755043000,-221.15963337,0.00021751,2]
[424294031,1780755043000,-800.0,0.00021918,2]
[424294023,1780755043000,-5000.0,0.00021918,2]
[424294011,1780755043000,-224.12010906,0.00021751,2]
[424293992,1780755043000,-431.49,0.00021,7]
[424294002,1780755043000,-1125.0,0.00021338,2]
[424294037,1780755043000,-800.0,0.00021918,2]
[424293983,1780755043000,-333.0,0.00021,2]
[424293982,1780755043000,-2510.0,0.00021,2]
[424293984,1780755043000,-15000.0,0.00021,2]
[424293985,1780755043000,-2997.52471814,0.00021,2]
[424293995,1780755043000,-675.0,0.00021,2]
[424293991,1780755043000,-1042.263907,0.00021,2]
[424293989,1780755043000,-786.0,0.00021,2]
[424293986,1780755043000,-353.0,0.00021,2]
[424293994,1780755043000,-1092.0,0.00021,2]
[424293993,1780755043000,-936.0,0.00021,2]
[424293990,1780755043000,-204.0,0.00021,2]
[424293987,1780755043000,-1918.0,0.00021,2]
[424293988,1780755043000,-360.0,0.00021,2]
[424293996,1780755043000,-2972.0,0.00021,2]
[424293997,1780755043000,-4110.0,0.00021,2]
[424294001,1780755043000,-1795.87396474,0.000212,2]
[424293999,1780755043000,-2322.0,0.00021109,2]
[424293998,1780755043000,-1116.0,0.00021,2]
[424294004,1780755043000,-1795.87396474,0.000214,2]
[424294000,1780755043000,-1478.40305161,0.000212,2]
[424294003,1780755043000,-1478.40305161,0.000214,2]
[424294005,1780755043000,-2586.85809042,0.00021411,2]
[424294006,1780755043000,-1478.40305161,0.000216,2]
[424294007,1780755043000,-14184.8,0.00021699,2]
[424294009,1780755043000,-164.0,0.0002172,2]
[424294036,1780755043000,-800.0,0.00021918,2]
[424293981,1780755043000,-1795.87396474,0.00021,2]
[424294038,1780755043000,-800.0,0.00021918,2]
[424294072,1780755043000,-1478.40305161,0.000221,2]
[424294071,1780755043000,-298.5,0.00022037,2]
[424294069,1780755043000,-3041.2,0.00022,2]
[424294076,1780755043000,-6952.99847296,0.00022299,2]
[424294074,1780755043000,-3554.61773671,0.00022199,2]
[424294067,1780755043000,-2972.0,0.00022,2]
[424294088,1780755043000,-1092.54734895,0.00022405,2]
[424294077,1780755043000,-5000.0,0.00022299,2]
[424294079,1780755043000,-5000.0,0.00022299,2]
[424294078,1780755043000,-5000.0,0.00022299,2]
[424294083,1780755043000,-4204.8,0.00022353,2]
[424294087,1780755043000,-993.9,0.000224,7]
[424294080,1780755043000,-5000.0,0.00022299,2]
[424294086,1780755043000,-2017.01286119,0.00022392,2]
[424294082,1780755043000,-718.0,0.00022347,7]
[424294081,1780755043000,-1478.40305161,0.000223,2]
[424294084,1780755043000,-500.0,0.00022392,2]
[424294089,1780755043000,-762.02338758,0.00022407,2]
[424294091,1780755043000,-762.02338758,0.00022407,2]
[424294092,1780755043000,-292.100373,0.00022407,2]
[424294090,1780755043000,-292.100373,0.00022407,2]
[424294093,1780755043000,-762.02338758,0.00022407,2]
[424294094,1780755043000,-292.100373,0.00022407,2]
[424294095,1780755043000,-227.81284819,0.00022452,2]
[424294035,1780755043000,-800.0,0.00021918,2]
[424294075,1780755043000,-223.0,0.00022225,2]
[424294073,1780755043000,-180.0,0.0002217,2]
[424294085,1780755043000,-500.0,0.00022392,2]
[424294066,1780755043000,-675.0,0.00022,2]
[424294033,1780755043000,-800.0,0.00021918,2]
[424294070,1780755043000,-1116.0,0.00022,2]
[424294041,1780755043000,-659.15953549,0.00021918,2]
[424294042,1780755043000,-350.0,0.00021925,2]
[424294043,1780755043000,-350.0,0.00021925,2]
[424294044,1780755043000,-350.0,0.00021925,2]
[424294051,1780755043000,-350.0,0.00021925,2]
[424294046,1780755043000,-350.0,0.00021925,2]
[424294048,1780755043000,-350.0,0.00021925,2]
[424294054,1780755043000,-400.0,0.00022,2]
[424294049,1780755043000,-350.0,0.00021925,2]
[424294047,1780755043000,-350.0,0.00021925,2]
[424294045,1780755043000,-350.0,0.00021925,2]
[424294053,1780755043000,-2682.57183977,0.00021959,2]
[424294062,1780755043000,-1042.263907,0.00022,2]
[424294056,1780755043000,-333.0,0.00022,2]
[424294055,1780755043000,-2510.0,0.00022,2]
[424294063,1780755043000,-936.0,0.00022,2]
[424294058,1780755043000,-1918.0,0.00022,2]
[424294061,1780755043000,-204.0,0.00022,2]
[424294060,1780755043000,-786.0,0.00022,2]
[424294057,1780755043000,-353.0,0.00022,2]
[424294059,1780755043000,-360.0,0.00022,2]
[424294064,1780755043000,-450.0,0.00022,2]
[424294052,1780755043000,-256.0,0.00021925,2]
[424294065,1780755043000,-1092.0,0.00022,2]
[424294068,1780755043000,-4110.0,0.00022,2]
[424294130,1780755044000,-333.0,0.00023,2]
[424294138,1780755044000,-200.0,0.00023,10]
[424294125,1780755044000,-400.0,0.0002297,2]
[424294145,1780755044000,-300.0,0.000231,10]
[424294132,1780755044000,-1918.0,0.00023,2]
[424294129,1780755044000,-2510.0,0.00023,2]
[424294127,1780755044000,-400.0,0.00023,2]
[424294131,1780755044000,-353.0,0.00023,2]
[424294134,1780755044000,-786.0,0.00023,2]
[424294133,1780755044000,-360.0,0.00023,2]
[424294143,1780755044000,-2972.0,0.00023,2]
[424294128,1780755044000,-1478.40305161,0.00023,2]
[424294147,1780755044000,-169.40741724,0.00023159,2]
[424294152,1780755044000,-300.0,0.00023287,7]
[424294149,1780755044000,-300.0,0.00023287,7]
[424294144,1780755044000,-4110.0,0.00023,2]
[424294146,1780755044000,-2322.0,0.00023159,3]
[424294148,1780755044000,-164.0,0.00023167,3]
[424294140,1780755044000,-1366.0,0.00023,2]
[424294141,1780755044000,-1092.0,0.00023,2]
[424294142,1780755044000,-675.0,0.00023,2]
[424294150,1780755044000,-300.0,0.00023287,7]
[424294160,1780755044000,-652.35,0.00023454,7]
[424294156,1780755044000,-300.0,0.00023287,7]
[424294161,1780755044000,-1214.75,0.00023454,7]
[424294151,1780755044000,-300.0,0.00023287,7]
[424294135,1780755044000,-204.0,0.00023,2]
[424294139,1780755044000,-936.0,0.00023,2]
[424294136,1780755044000,-1042.263907,0.00023,2]
[424294096,1780755044000,-218.24967351,0.00022452,2]
[424294126,1780755044000,-700.0,0.0002297,2]
[424294099,1780755044000,-1525.66,0.00022466,2]
[424294098,1780755044000,-290.53,0.00022466,2]
[424294097,1780755044000,-435.46,0.00022466,2]
[424294153,1780755044000,-300.0,0.00023287,7]
[424294111,1780755044000,-150.0,0.00022597,2]
[424294101,1780755044000,-350.0,0.0002248,4]
[424294103,1780755044000,-167.0,0.00022486,2]
[424294102,1780755044000,-197.0,0.00022483,2]
[424294113,1780755044000,-1478.40305161,0.000227,2]
[424294100,1780755044000,-411.0,0.00022472,2]
[424294112,1780755044000,-168.33,0.00022603,2]
[424294104,1780755044000,-154.80702179,0.00022486,2]
[424294107,1780755044000,-1346.0,0.00022511,2]
[424294109,1780755044000,-150.0,0.00022597,2]
[424294105,1780755044000,-1478.40305161,0.000225,2]
[424294110,1780755044000,-150.0,0.00022597,2]
[424294106,1780755044000,-2781.82699784,0.00022507,2]
[424294108,1780755044000,-1370.0,0.00022511,2]
[424294114,1780755044000,-187.92879607,0.000227,2]
[424294118,1780755044000,-175.28353142,0.00022848,2]
[424294115,1780755044000,-193.0,0.00022739,7]
[424294124,1780755044000,-400.0,0.0002297,2]
[424294120,1780755044000,-3554.0,0.00022866,2]
[424294116,1780755044000,-3642.0,0.00022776,2]
[424294117,1780755044000,-419.0,0.00022776,2]
[424294122,1780755044000,-1227.0,0.00022866,2]
[424294123,1780755044000,-400.0,0.0002297,2]
[424294121,1780755044000,-382.0,0.00022866,2]
[424294119,1780755044000,-150.0,0.00022866,2]
[424294137,1780755044000,-164.0,0.00023,3]
[424294155,1780755044000,-300.0,0.00023287,7]
[424294159,1780755044000,-14184.8,0.00023397,7]
[424294162,1780755044000,-164.0,0.0002396,3]
[424294195,1780755044000,-985.30280392,0.00024501,2]
[424294192,1780755044000,-303.0,0.00024367,2]
[424294197,1780755044000,-550.0,0.00024516,2]
[424294201,1780755044000,-550.0,0.00024516,2]
[424294194,1780755044000,-172.0,0.00024484,2]
[424294199,1780755044000,-550.0,0.00024516,2]
[424294202,1780755044000,-550.0,0.00024516,2]
[424294200,1780755044000,-550.0,0.00024516,2]
[424294203,1780755044000,-550.0,0.00024516,2]
[424294196,1780755044000,-550.0,0.00024516,2]
[424294198,1780755044000,-550.0,0.00024516,2]
[424294214,1780755044000,-1360.64,0.00024658,2]
[424294213,1780755044000,-1350.57,0.00024658,2]
[424294193,1780755044000,-2322.0,0.00024447,3]
[424294204,1780755044000,-550.0,0.00024516,2]
[424294207,1780755044000,-150.0,0.00024519,2]
[424294209,1780755044000,-315.0,0.000246,2]
[424294206,1780755044000,-150.0,0.00024519,2]
[424294208,1780755044000,-192.0,0.00024519,2]
[424294211,1780755044000,-1000.0,0.00024658,2]
[424294212,1780755044000,-1005.02,0.00024658,2]
[424294157,1780755044000,-430.0,0.00023287,7]
[424294215,1780755044000,-3041.2,0.00024781,7]
[424294218,1780755044000,-613.21,0.00024862,7]
[424294219,1780755044000,-1141.86,0.00024862,7]
[424294217,1780755044000,-1000.0,0.000248,2]
[424294216,1780755044000,-309.0,0.000248,2]
[424294220,1780755044000,-200.0,0.00024928,2]
[424294205,1780755044000,-160.0,0.00024516,2]
[424294191,1780755044000,-4204.8,0.00024324,2]
[424294210,1780755044000,-200.0,0.000246,2]
[424294190,1780755044000,-993.9,0.000243,7]
[424294185,1780755044000,-150.0,0.00024162,2]
[424294154,1780755044000,-300.0,0.00023287,7]
[424294158,1780755044000,-214.09441205,0.00023354,2]
[424294166,1780755044000,-353.0,0.00024,2]
[424294165,1780755044000,-333.0,0.00024,2]
[424294168,1780755044000,-360.0,0.00024,2]
[424294174,1780755044000,-500.0,0.00024,2]
[424294169,1780755044000,-786.0,0.00024,2]
[424294170,1780755044000,-204.0,0.00024,2]
[424294171,1780755044000,-1042.263907,0.00024,2]
[424294167,1780755044000,-1918.0,0.00024,2]
[424294164,1780755044000,-2510.0,0.00024,2]
[424294173,1780755044000,-936.0,0.00024,2]
[424294172,1780755044000,-215.80795776,0.00024,7]
[424294163,1780755044000,-400.0,0.00024,2]
[424294176,1780755044000,-675.0,0.00024,2]